Cogmind - Beta 16.1 --- EXPLORER MODE // 2026.06.17 @ 21:06:56 Player: NeoBioHazard Result: Destroyed by P-80 Master with Gamma Rifle Performance ------------- Evolutions (7) 3500 Regions Visited (14) 2800 Robots Destroyed (990) 4950 Value Destroyed (39720) 39720 Prototype IDs (64) 1280 Alien Tech Used (0) 0 Bonus (2926) 2926 TOTAL SCORE: 55176 Bonus ------- High Alert Combat Kills 1499 Follower Combat Kills 654 Network Hubs Disabled 800 Friendly Fire -27 Cogmind --------- Core Integrity 0/1300 Matter 166/300 Energy 100/100 System Corruption 17% Temperature Cool (0) Movement Treading (160) Location -3/Research Parts ------- > --- POWER (2) -------- (None) > --- PROPULSION (6) --- Heavy Treads > --- UTILITY (10) ----- (None) > --- WEAPON (4) ------- Heavy Proton Cannon Heavy Proton Cannon > --- INVENTORY (5) ---- Huge Storage Unit High-capacity Matter Pod (200) High-powered Tractor Beam Improved Field Recycling Unit (0) Peak State ------------ > --- POWER ------------ Cold Fusion Reactor Cold Fusion Reactor > --- PROPULSION ------- Armored Medium Treads Heavy Treads Advanced Medium Treads Improved Heavy Treads > --- UTILITY ---------- Advanced Cooling System Huge Storage Unit Advanced Targeting Computer Weapon Mount Armor Integrity Analyzer Precision Matter Filter Layered Medium Armor Plating Advanced Shield Generator > --- WEAPON ----------- Mass Driver Mass Driver Hypervelocity Gauss Cannon Linear Accelerator > --- INVENTORY -------- Heavy Deuterium Engine Heavy Deuterium Engine Heavy Deuterium Engine Heavy Deuterium Engine Improved Medium Treads Armored Medium Treads Heavy Treads Improved Thermal Generator Advanced Cooling System Huge Storage Unit High-capacity Matter Pod Compact Matter Pod Matter Compressor Improved Medium Armor Plating Layered Heavy Armor Plating Advanced System Restoration Module High-powered Tractor Beam Improved Field Recycling Unit Enhanced Gauss Cannon Heavy Missile Launcher Heavy Missile Launcher Long-range Missile Launcher Long-range Missile Launcher [Rating: 125] Favorites ----------- Power Heavy Deuterium Engine Engine Heavy Deuterium Engine Power Core Fission Core Reactor Cold Fusion Reactor Propulsion Armored Treads Treads Armored Treads Leg Aluminum Leg Hover Unit Improved Hover Unit Utility Huge Storage Unit Device Advanced Heat Sink Storage Huge Storage Unit Processor Advanced Targeting Computer Protection Layered Medium Armor Plating Weapon Mini Assault Cannon Energy Gun Dispersion Rifle Energy Cannon Heavy Proton Cannon Ballistic Gun Enhanced Autogun Ballistic Cannon Mini Assault Cannon Launcher Rocket Launcher Special Melee Weapon Datajack Build | -11 -10 -9 -8 -7 -6 -6 -6 -5 -4 -4 -4 -4 -4 -3 ------- Run | Yrd Mat Mat Mat Fac Fac Was Fac Fac Fac Ext Cet Arc Hub Res Slots Evolved 15 | . 1 2 2 2 2 . . 2 2 . . . . 2 Power 1 | . . . . . . . . 1 . . . . . . Propulsion 4 | . 1 1 . . . . . . 2 . . . . . Utility 8 | . . . 2 1 2 . . 1 . . . . . 2 Weapon 2 | . . 1 . 1 . . . . . . . . . . Parts Attached 257 | 7 21 26 24 25 17 7 36 33 10 9 . . 21 21 Power 25 | 1 2 4 1 2 3 . 2 3 . 1 . . 4 2 Engine 15 | 1 2 4 1 2 2 . 1 1 . . . . 1 . Core 5 | . . . . . 1 . . . . . . . 3 1 Reactor 5 | . . . . . . . 1 2 . 1 . . . 1 Propulsion 59 | 2 11 10 3 1 3 3 9 5 4 1 . . 3 4 Treads 44 | . . 9 3 1 3 3 9 5 4 1 . . 3 3 Leg 9 | 2 5 1 . . . . . . . . . . . 1 Wheel . | . . . . . . . . . . . . . . . Hover 6 | . 6 . . . . . . . . . . . . . Flight . | . . . . . . . . . . . . . . . Utility 94 | 2 2 5 10 13 10 . 18 12 4 4 . . 10 4 Device 41 | . . 1 1 7 4 . 10 6 3 1 . . 5 3 Storage 8 | . 1 3 . . . . 2 2 . . . . . . Processor 12 | 1 . . 2 1 2 . 4 . . 1 . . 1 . Hackware . | . . . . . . . . . . . . . . . Protection 33 | 1 1 1 7 5 4 . 2 4 1 2 . . 4 1 Artifact . | . . . . . . . . . . . . . . . Weapon 79 | 2 6 7 10 9 1 4 7 13 2 3 . . 4 11 Energy Gun 7 | 1 1 . 1 . . . . . . 1 . . . 3 Energy Cannon 4 | . . . . . . . . . . . . . . 4 Ballistic Gun 21 | 1 2 6 7 . . . . . 1 . . . 2 2 Ballistic Cannon 34 | . . . 1 9 1 . 7 11 1 2 . . 2 . Launcher 12 | . 2 1 1 . . 4 . 2 . . . . . 2 Special Weapon . | . . . . . . . . . . . . . . . Impact Weapon . | . . . . . . . . . . . . . . . Slashing Weapon . | . . . . . . . . . . . . . . . Piercing Weapon . | . . . . . . . . . . . . . . . Special Melee Weapon 1 | . 1 . . . . . . . . . . . . . Unidentified Prototypes 6 | . . . 2 1 . . . 1 . . . . 1 1 Corrupted Parts 1 | . . . . . . . . . . . . . 1 . System Corruption 1 | . . . . . . . . . . . . . 1 . Parts Lost 84 | . . 2 2 7 12 . 9 5 4 4 . . 8 31 Power 8 | . . . . . . . . . . 1 . . 2 5 Propulsion 15 | . . . . 1 5 . 3 . . . . . 1 5 Utility 32 | . . 2 2 3 5 . 4 1 2 1 . . 2 10 Weapon 29 | . . . . 3 2 . 2 4 2 2 . . 3 11 Highest Loss Streak 21 | . . 1 1 2 3 . 2 2 2 1 . . 2 21 To Critical Strikes 1 | . . . . . . . . . . . . . . 1 Average Backups 22 | 1 5 17 24 24 23 24 23 23 22 22 23 23 21 13 Power 2 | . . 1 3 2 2 3 2 2 4 4 4 4 3 2 Propulsion 1 | . . 2 1 1 1 . . 3 2 3 2 2 2 1 Utility 11 | . 1 8 13 15 13 15 12 10 10 11 13 13 12 7 Weapon 6 | . 1 4 6 5 5 6 8 7 4 3 4 4 3 1 Tool/Special . | . . . . . . . . . . . . . . . Unused Backups 45 | . 2 . 12 9 3 . 8 6 . . . . 1 4 Power 6 | . 1 . . 1 1 . 2 . . . . . . 1 Propulsion 3 | . 1 . 1 . . . . 1 . . . . . . Utility 25 | . . . 11 3 1 . 5 1 . . . . 1 3 Weapon 11 | . . . . 5 1 . 1 4 . . . . . . Tool/Special . | . . . . . . . . . . . . . . . Average Slot Usage (%) 94 | . 98 94 98 99 95 92 93 94 88 80 85 85 83 53 Engine 5 | . 11 6 7 6 5 . 1 10 . . . . 2 2 Reactor 1 | . . . . . . . 3 . 10 9 10 10 3 . Treads 23 | . . 33 32 27 22 24 24 16 20 20 20 20 15 6 Hover 1 | . 25 . . . . . . . . . . . . . Device 11 | . . 3 3 12 15 12 13 17 16 9 10 10 13 11 Storage 6 | . 2 10 8 7 6 6 6 5 5 5 5 5 5 3 Processor 8 | . 9 . 4 7 10 6 10 11 10 10 10 10 10 7 Protection 8 | . 11 5 16 7 8 12 4 9 7 8 10 10 10 5 Ballistic Gun 5 | . 19 21 13 7 . . . . . . . . 3 2 Ballistic Cannon 16 | . . . 4 19 24 3 24 21 19 10 15 15 15 5 Launcher 1 | . 5 8 4 1 . 21 . . . 4 . . . . Peak Build Rating 125 | 7 13 26 38 57 66 67 80 113 125 124 121 121 125 116 Average Rating 67 | 5 11 22 34 52 61 65 73 105 121 115 121 121 120 76 On Entrance 69 | . 7 11 26 34 53 60 66 79 106 124 121 121 121 114 Avg Prop Armor Cover (%) 4 | . . 5 . 5 . . 3 5 . . . . . . Naked Turns 35 | . . . . . . . . . . . . . . 35 Heaviest Build 177 | 10 26 100 112 134 134 143 143 177 175 175 161 161 169 153 Greatest Support 220 | 20 30 80 82 82 88 110 116 124 202 202 202 202 220 220 Greatest Overweight (x) 6 | 1 2 1 1 1 6 1 2 1 1 . . . . 5 Average Overweight (x) . | . . . 1 1 1 1 . 1 . . . . . . Largest Inventory Capacity 25 | 5 10 25 25 25 25 25 25 25 25 25 25 25 25 25 Average Capacity 23 | 5 5 21 25 25 25 25 25 25 25 25 25 25 25 20 Most Carried 25 | 3 8 22 25 25 25 25 25 25 25 25 25 25 25 20 Average Carried 23 | 1 5 17 24 24 23 25 24 24 23 23 25 25 23 14 Final Capacity 25 | 5 10 25 25 25 25 25 25 25 25 25 25 25 25 5 Final Carried 25 | 3 8 22 25 24 25 25 24 25 23 25 25 25 18 4 Class Distribution -------------------- 39% | Hacker-Gunner 38% | Hacker-Tank 10% | Hacker-Bomber 6% | Hacker-Mutant Dominant Class ---------------- Hacker-Mutant | -10/Materials Hacker-Tank | -9/Materials Hacker-Tank | -8/Materials Hacker-Gunner | -7/Factory Hacker-Gunner | -6/Factory Hacker-Tank | -6/Waste Hacker-Gunner | -6/Factory Hacker-Tank | -5/Factory Scientist-Tank | -4/Factory Hacker-Tank | -4/Extension Hacker-Tank | -4/Cetus Hacker-Tank | -4/Archives Hacker-Tank | -4/Hub_04(d) Hacker-Tank | -3/Research Resources | -11 -10 -9 -8 -7 -6 -6 -6 -5 -4 -4 -4 -4 -4 -3 ----------- Run | Yrd Mat Mat Mat Fac Fac Was Fac Fac Fac Ext Cet Arc Hub Res Matter Collected 33467 | 270 1646 1815 3075 5180 2176 372 7884 3502 1070 1518 464 245 3130 1120 Remotely 1922 | . . . 1408 208 . . . . 306 . . . . . Salvage Created 34333 | . 2768 2232 2861 5965 2367 1287 4747 4084 1586 1172 121 140 2531 2472 Parts 1670 | . 182 140 170 318 116 3 206 178 88 40 3 2 103 121 Haulers Intercepted 40 | . 2 5 6 6 2 . 8 6 1 . . . 4 . Recyclers Shooed 18 | . 1 1 3 1 3 . 4 2 . . . . 1 2 Parts Field Recycled . | . . . . . . . . . . . . . . . Retrieved Matter . | . . . . . . . . . . . . . . . Parts Self-Destructed . | . . . . . . . . . . . . . . . Prevented . | . . . . . . . . . . . . . . . Parts Restored . | . . . . . . . . . . . . . . . Kills | -11 -10 -9 -8 -7 -6 -6 -6 -5 -4 -4 -4 -4 -4 -3 ------- Run | Yrd Mat Mat Mat Fac Fac Was Fac Fac Fac Ext Cet Arc Hub Res Combat Hostiles Destroyed 679 | . 24 54 50 128 61 6 126 87 36 14 3 2 44 44 Guns 137 | . 24 27 34 30 . . . . . 2 . 1 7 12 Cannons 456 | . . . 5 97 57 . 125 83 34 3 3 1 37 11 AOE 84 | . . 27 11 1 4 6 1 4 2 9 . . . 19 Classes Destroyed 21 | . 8 2 3 2 2 1 1 . . . . . . 2 Worker 116 | . 37 5 10 9 4 . 17 3 8 5 . . 8 10 Builder 82 | . 15 5 6 14 5 . 6 8 9 5 . . 6 3 Tunneler 14 | . 1 2 . 2 1 . . 1 1 5 . . 1 . Hauler 40 | . 2 5 6 6 2 . 8 6 1 . . . 4 . Recycler 50 | . 7 6 5 8 2 . 7 4 1 8 . . . 2 Mechanic 5 | . . . 1 1 1 . 1 . . . . . . 1 Operator 10 | . . 1 . 2 1 . 2 2 . . . . 1 1 Watcher 22 | . 3 1 2 2 3 . 2 2 2 2 . . 2 1 Swarmer 72 | . 2 16 6 11 3 . 11 4 5 3 . . 2 9 Cutter 3 | . . . . . . . . . . . . . . 3 Grunt 315 | . 22 28 30 70 27 . 61 30 9 8 . . 10 20 Brawler 9 | . . . 1 1 1 . 5 . . . . . . 1 Duelist 7 | . . . . 1 1 . 1 2 . . . . 1 1 Protector 1 | . . . . . . . . . . . . . . 1 Sentry 80 | . . 10 10 16 4 . 11 10 4 2 . 2 10 1 Specialist 3 | . . . . . 3 . . . . . . . . . Hunter 60 | . . . 3 10 9 . 12 9 10 . 2 . 3 2 Programmer 109 | . . . . 19 10 . 24 31 8 . . . 11 6 Heavy 3 | . . . . . 3 . . . . . . . . . Behemoth 4 | . . . . . . . 1 1 . 1 . . 1 . Compactor 6 | . . . . . . 6 . . . . . . . . Cetus Guard 1 | . . . . . . . . . . . 1 . . . Lightning 6 | . . . . . . . . . . . . . 6 . Best Kill Streak 22 | . 9 12 9 9 10 4 7 8 12 16 2 2 11 22 Combat Bots Only 17 | . 6 6 6 7 5 4 6 7 7 4 2 2 7 17 Max Kills in Single Turn 10 | . 2 4 5 3 4 2 3 3 5 7 1 1 10 10 Gunslinging 1 | . . . 1 . . . . . . . . . . . Exploded 8 | . . 3 3 1 3 2 1 3 2 3 . . . 8 Melee . | . . . . . . . . . . . . . . . Uniques/NPCs Destroyed . | . . . . . . . . . . . . . . . Combat | -11 -10 -9 -8 -7 -6 -6 -6 -5 -4 -4 -4 -4 -4 -3 -------- Run | Yrd Mat Mat Mat Fac Fac Was Fac Fac Fac Ext Cet Arc Hub Res Hostile Shots Fired 3755 | . 79 148 210 593 336 . 715 329 269 153 15 14 223 671 Missed 1201 | . 27 39 60 199 112 . 234 98 109 43 5 3 69 203 Hits 2554 | . 52 109 150 394 224 . 481 231 160 110 10 11 154 468 Melee 38 | . . . . 1 . . 5 . . . . . . 32 Projectile 2516 | . 52 109 150 393 224 . 476 231 160 110 10 11 154 436 AOE 7 | . . . 1 . 1 . 1 3 . . . . 1 . Critical Strikes 115 | . . 4 7 14 9 . 20 11 5 6 3 . 9 27 Actively Blocked 4 | . . . 4 . . . . . . . . . . . Part Disruptions 5 | . . . . 2 . . 1 1 . . . . . 1 Damage Taken 28368 | . 342 942 1431 3310 2757 27 4053 2904 1620 1926 62 172 2751 6071 Core 2752 | . 34 96 76 289 188 27 253 177 125 101 . 18 65 1303 Absorbed by Shields 1626 | . . 75 . . 28 10 825 496 111 24 57 . . . Redirected to Shielding 103 | . . . 53 . . . . . . . . . 9 41 Ignored by Resistances 18739 | . 224 648 978 1999 1645 21 2963 1987 1023 1163 157 131 1707 4093 Regen/Repaired (Parts) 2601 | . 35 97 541 1081 317 . 254 221 55 . . . . . Core Remaining (%) 75 | 100 86 76 86 58 . . 44 82 . . . . 73 . Volleys Fired 1520 | . 167 131 153 256 126 8 259 136 69 29 11 6 97 72 Largest 4 | . 2 3 3 4 4 4 4 4 4 4 4 4 4 4 Hottest 223 | . 70 79 83 160 164 156 164 216 199 223 223 223 223 201 Shots Fired 4933 | . 334 254 348 909 485 33 1038 542 271 99 40 24 380 176 Gun 1303 | . 330 195 281 308 . . . . . 5 8 6 84 86 Cannon 3423 | . . . 42 601 485 . 1037 538 271 25 32 18 296 78 Launcher 207 | . 4 59 25 . . 33 1 4 . 69 . . . 12 Special . | . . . . . . . . . . . . . . . Kinetic 4646 | . 320 195 323 909 485 . 1037 538 271 25 32 18 373 120 Thermal 73 | . 10 . . . . . . . . 5 8 6 7 37 Explosive 207 | . 4 59 25 . . 33 1 4 . 69 . . . 12 Electromagnetic 7 | . . . . . . . . . . . . . . 7 Robot Hit Streak 74 | . 74 55 69 42 45 21 62 38 42 39 31 17 66 52 Robot Miss Streak 3 | . 1 2 1 2 3 2 3 2 1 1 1 1 1 2 Penetration Max 2 | . . . . 1 1 . . 1 1 . . . 1 2 Secondary Targets 10 | . 5 1 3 . . . . . . . . . . 1 Max Gunslinging Chain 1 | . 1 1 1 . . . . . . . . . . 1 Shots Hit Robots 3485 | . 234 191 283 625 341 21 703 347 197 73 30 19 291 130 Core Hits 1779 | . 104 115 136 265 135 12 369 178 93 105 12 9 123 123 Critical Kills 26 | . 1 1 . . . . . 2 11 2 . 1 6 2 Critical Parts Destroyed 46 | . 1 1 1 1 . . . 2 17 1 . 1 13 8 Critical Strikes 265 | . 4 3 1 40 29 . 41 34 42 4 3 2 39 23 Burn 6 | . 2 . . . . . . . . . . . . 4 Destroy 74 | . 2 3 1 1 . . . 4 28 3 . 2 20 10 Blast 184 | . . . . 39 29 . 41 30 14 1 3 . 19 8 Corrupt 1 | . . . . . . . . . . . . . . 1 Melee Attacks 1 | . 1 . . . . . . . . . . . . . Impact . | . . . . . . . . . . . . . . . Slashing . | . . . . . . . . . . . . . . . Piercing . | . . . . . . . . . . . . . . . Sneak Attacks . | . . . . . . . . . . . . . . . Combat Hostiles . | . . . . . . . . . . . . . . . Follow-up Attacks . | . . . . . . . . . . . . . . . Damage Inflicted 113679 | . 3560 5094 6253 15394 10511 3036 21852 14221 7061 7140 848 575 10407 7727 Guns 18857 | . 3559 2395 4010 4617 . . . . . 135 162 162 1785 2032 Cannons 71902 | . . . 508 10207 9222 . 21281 13512 6230 535 686 413 7369 1939 Explosions 22845 | . . 2693 1735 570 1289 3036 571 709 831 6470 . . 1196 3745 Melee . | . . . . . . . . . . . . . . . Ramming 75 | . 1 6 . . . . . . . . . . 57 11 Kinetic 89340 | . 3436 2395 4518 14824 9222 . 21281 13512 6230 535 686 413 9019 3269 Thermal 3586 | . 123 . 114 257 771 . 218 . 831 135 162 162 259 554 Explosive 19282 | . . 2693 1621 313 426 3036 269 709 . 6470 . . . 3745 Electromagnetic 1375 | . . . . . 92 . 84 . . . . . 1072 127 Impact 21 | . . . . . . . . . . . . . . 21 Slashing . | . . . . . . . . . . . . . . . Piercing . | . . . . . . . . . . . . . . . Highest Corruption 19 | . . 2 2 16 2 2 8 19 2 3 3 3 13 17 Average Corruption 6 | . . 1 1 7 1 2 5 12 1 2 3 3 5 5 Corruption Purged 15 | . . . . 5 . . . . . . . . 10 . Corruption Blocked . | . . . . . . . . . . . . . . . Effects 992 | . . 35 20 253 32 4 258 278 8 13 10 2 66 13 Message Errors 240 | . . 5 9 62 7 . 68 64 3 1 3 . 15 3 Matter Fused 237 | . . 9 4 61 8 . 71 59 1 6 3 2 13 . Heat Flow Errors 127 | . . 9 2 33 5 . 31 34 . . . . 12 1 Energy Discharges 102 | . . 3 1 31 5 2 20 32 1 1 . . 3 3 Parts Rejected 7 | . . 1 . . . . 3 1 1 . . . . 1 Parts Fused 14 | . . 1 . 4 . . 2 7 . . . . . . Data Loss (minor) 117 | . . 3 4 32 2 . 30 27 2 4 1 . 11 1 Data Loss (major) 44 | . . 2 . 13 . . 9 13 . . . . 5 2 Misfires 41 | . . . . 3 2 1 14 17 . 1 1 . 2 . Alerts 24 | . . . . 7 1 1 5 8 . . 1 . . 1 Misdirections 2 | . . . . . . . . 2 . . . . . . Weapon Failures 37 | . . 2 . 7 2 . 5 14 . . 1 . 5 1 Overload Shots . | . . . . . . . . . . . . . . . Overflow Damage 3049 | . . 118 97 299 382 . 485 515 344 205 . . 363 241 Projectiles 1921 | . . . 2 286 250 . 482 498 124 8 . . 201 70 Explosions 1102 | . . 118 95 13 132 . 3 17 220 197 . . 136 171 Melee 26 | . . . . . . . . . . . . . 26 . Knockbacks 557 | . . . 6 77 83 . 186 85 50 2 1 . 47 20 Impact . | . . . . . . . . . . . . . . . Kinetic 508 | . . . 6 72 76 . 166 78 45 2 1 . 46 16 Secondary 49 | . . . . 5 7 . 20 7 5 . . . 1 4 Self-Inflicted Damage 1567 | . . 131 34 95 198 37 15 218 218 . . . 189 432 Shots 35 | . . 5 3 2 3 1 1 4 4 . . . 3 9 Rammed 6 | . 1 1 . . . . . . . . . . 2 2 Targets Rammed 6 | . 1 1 . . . . . . . . . . 2 2 Kicked . | . . . . . . . . . . . . . . . Crushed . | . . . . . . . . . . . . . . . Highest Temperature 597 | . 239 269 419 597 361 252 593 383 55 150 73 235 466 173 Average Temperature 74 | . 40 59 65 86 77 97 110 99 13 59 33 107 64 36 Received Heat Transfer 7683 | . 285 429 1008 1563 657 . 1580 443 203 356 . 63 258 838 Effects 32 | . . . 3 9 . . 14 5 . . . . 1 . Shutdowns 4 | . . . . 1 . . 2 . . . . . 1 . Energy Bleed 3 | . . . . 1 . . . 2 . . . . . . Interference 14 | . . . 1 4 . . 6 3 . . . . . . Matter Decay 2 | . . . 1 . . . 1 . . . . . . . Short Circuit 4 | . . . 1 1 . . 2 . . . . . . . Damage (minor) 4 | . . . . 1 . . 3 . . . . . . . Damage (core) 1 | . . . . 1 . . . . . . . . . . Siege Activations . | . . . . . . . . . . . . . . . Martial Activations . | . . . . . . . . . . . . . . . Shielding Activations . | . . . . . . . . . . . . . . . Robots Disrupted . | . . . . . . . . . . . . . . . Combat Hostiles . | . . . . . . . . . . . . . . . Robots Corrupted 4 | . . . . . . . . . 1 . . . 2 1 Combat Hostiles 1 | . . . . . . . . . . . . . . 1 Parts Fried 14 | . . 1 . . . . 3 2 2 . . . 5 1 Impact Corruptions 8 | . . . . . 2 . 1 1 2 . . . 1 1 Robots Melted 1 | . . . . . . . . . . . . . . 1 Combat Hostiles 1 | . . . . . . . . . . . . . . 1 Parts Melted 5 | . 1 . . 1 . . . . 1 . . . . 2 Heat Transferred 3753 | . 518 . 50 150 500 . 150 . 500 185 222 222 285 971 Parts Sabotaged . | . . . . . . . . . . . . . . . Parts Stolen . | . . . . . . . . . . . . . . . Parts Stripped . | . . . . . . . . . . . . . . . Power Chain Reactions 12 | . . . . 8 . . 3 . . . . . 1 . Alert | -11 -10 -9 -8 -7 -6 -6 -6 -5 -4 -4 -4 -4 -4 -3 ------- Run | Yrd Mat Mat Mat Fac Fac Was Fac Fac Fac Ext Cet Arc Hub Res Maximum Alert Level 3 | . 1 2 . 1 1 . 1 1 2 2 . . 3 3 Low Security (%) 90 | 100 98 74 100 92 97 100 99 94 49 58 100 100 67 . Level 1 5 | . 1 14 . 7 2 . . 5 17 37 . . 6 12 Level 2 3 | . . 10 . . . . . . 33 3 . . 23 51 Level 3 . | . . . . . . . . . . . . . 2 36 Level 4 . | . . . . . . . . . . . . . . . Level 5 . | . . . . . . . . . . . . . . . High Security . | . . . . . . . . . . . . . . . Max Security . | . . . . . . . . . . . . . . . Sterilizations 4 | . . 1 1 1 . . 1 . . . . . . . Peak Influence 1047 | . 218 482 193 293 278 41 225 256 601 429 63 40 783 1047 Initial 287 | . . . . . 5 41 . . . 194 . . . 287 Average 68 | . 71 118 23 51 39 7 26 48 236 182 14 7 180 682 Influence Increases 25301 | . 1047 2023 1777 4277 2469 99 4152 3276 1455 770 172 101 2206 1477 Destroy 0b10 Robot/C 13680 | . 480 1080 1000 2560 1220 . 2520 1740 720 380 120 80 900 880 Destroy 0b10 Robot/NC 1720 | . 325 125 150 220 95 . 215 130 110 140 5 . 110 95 Destroy Leader 3510 | . 110 272 286 716 340 . 690 454 176 46 10 . 268 142 Allied During Kill 70 | . . . . . . . . . . 35 27 3 3 2 Trap Triggered on 0b10 60 | . . 30 10 10 . . . 10 . . . . . . Successful Hack 627 | . 38 22 27 115 77 . 181 74 46 20 . . 17 10 Select Force Hacks 980 | . 60 160 160 290 130 . 100 50 30 . . . . . Disable Machine 716 | . 24 36 20 96 188 . 80 112 36 . 4 12 96 12 Anti-Garrison Action 150 | . . . . . . . . . 150 . . . . . Destroy Structure 2933 | . 10 283 94 165 254 99 156 616 172 134 6 6 752 186 Partial Spotted 60 | . . . . 15 . . . . . . . . 15 30 Lose Combat Pursuer 795 | . . 15 30 90 165 . 210 90 15 15 . . 45 120 Influence Decreases 24287 | . 1047 2023 1777 4261 2312 272 4152 3276 915 1310 172 101 1468 1201 Entered New Map 940 | . . . . . 11 132 . . . 346 . . . 451 Time Decay 22486 | . 1047 2003 1757 4200 2194 140 4092 3256 875 904 152 70 1376 420 Lost Part 750 | . . 20 20 61 107 . 60 20 40 40 . . 72 310 Lost Ally 111 | . . . . . . . . . . 20 20 31 20 20 Squads Dispatched 247 | . 9 9 14 59 26 . 52 37 12 2 1 . 12 14 Investigation 109 | . 9 9 11 24 11 . 19 16 6 1 1 . 1 1 Extermination 73 | . . . . 19 10 . 22 15 2 . . . 4 1 Reinforcement 38 | . . . 3 7 5 . 8 3 . 1 . . 4 7 Assault 3 | . . . . . . . . . 1 . . . . 2 Garrison 24 | . . . . 9 . . 3 3 3 . . . 3 3 Intercept . | . . . . . . . . . . . . . . . Searches Triggered . | . . . . . . . . . . . . . . . Construction Impeded 14 | . . . 1 3 . . 3 1 . 1 . . 2 3 Haulers Reinforced 6 | . . . . 1 . . 3 1 . . . . 1 . Active Scanning Responses . | . . . . . . . . . . . . . . . Cargo Convoy Interrupts 2 | . . . . . 1 . . . . . . . . 1 Stealth | -11 -10 -9 -8 -7 -6 -6 -6 -5 -4 -4 -4 -4 -4 -3 --------- Run | Yrd Mat Mat Mat Fac Fac Was Fac Fac Fac Ext Cet Arc Hub Res Distress Signals 41 | . 1 5 6 7 1 . 4 2 2 2 1 . 5 5 Communications Jammed . | . . . . . . . . . . . . . . . Distress Signals . | . . . . . . . . . . . . . . . Times Spotted 895 | . 27 71 80 143 75 5 171 108 47 22 8 8 60 70 Peak Tracking Total 16 | . 4 7 8 5 6 3 6 6 5 5 5 2 5 16 Tactical Retreats 45 | . . 1 2 4 10 . 12 5 1 1 . . 3 6 Traps | -11 -10 -9 -8 -7 -6 -6 -6 -5 -4 -4 -4 -4 -4 -3 ------- Run | Yrd Mat Mat Mat Fac Fac Was Fac Fac Fac Ext Cet Arc Hub Res Traps Triggered 30 | . . 6 7 3 1 . 9 2 . 2 . . . . Indirectly . | . . . . . . . . . . . . . . . Trap Hack Attempts . | . . . . . . . . . . . . . . . Triggered . | . . . . . . . . . . . . . . . Disarmed . | . . . . . . . . . . . . . . . Reprogrammed 26 | . . 7 4 6 . . . 3 . . . . . 6 Reused 6 | . . 3 1 1 . . . 1 . . . . . . Traps Extracted . | . . . . . . . . . . . . . . . Installed . | . . . . . . . . . . . . . . . Triggered 6 | . . 3 1 1 . . . 1 . . . . . . Objects Rigged 60 | . . . 2 7 27 . 9 15 . . . . . . Exploded 10 | . . . 1 1 4 . 3 1 . . . . . . Machines | -11 -10 -9 -8 -7 -6 -6 -6 -5 -4 -4 -4 -4 -4 -3 ---------- Run | Yrd Mat Mat Mat Fac Fac Was Fac Fac Fac Ext Cet Arc Hub Res Machines Disabled 187 | . 6 9 6 24 47 . 24 28 10 2 1 3 24 3 Max in Single Turn 8 | . 2 3 1 3 7 . 4 4 6 1 . . 8 2 Garrison Access 1 | . . . . . . . . . 1 . . . . . Network Hub 4 | . . . . . . . . . . . . . 4 . Machines Repaired . | . . . . . . . . . . . . . . . Machines Dismantled . | . . . . . . . . . . . . . . . Machines Sabotaged 5 | . . 2 2 . 1 . . . . . . . . . Overloaded Fab Kills 12 | . . . . 9 . . 3 . . . . . . . Hacking | -11 -10 -9 -8 -7 -6 -6 -6 -5 -4 -4 -4 -4 -4 -3 --------- Run | Yrd Mat Mat Mat Fac Fac Was Fac Fac Fac Ext Cet Arc Hub Res Machines Accessed 138 | . 11 13 13 25 12 . 25 19 6 6 1 . 6 1 Terminals 91 | . 8 8 7 13 8 . 15 14 4 6 1 . 6 1 Fabricators 10 | . . . . 4 1 . 3 2 . . . . . . Repair Stations 18 | . 1 2 2 4 2 . 4 2 1 . . . . . Recycling Units 5 | . 2 1 1 . . . 1 . . . . . . . Scanalyzers 9 | . . 2 2 3 1 . . . 1 . . . . . Garrison Access 5 | . . . 1 1 . . 2 1 . . . . . . Total Hacks 462 | . 47 51 46 72 46 . 74 57 23 9 2 . 23 12 Successful 278 | . 43 31 30 44 24 . 37 31 15 6 . . 13 4 Failed 184 | . 4 20 16 28 22 . 37 26 8 3 2 . 10 8 Catastrophic 26 | . . 1 2 6 2 . 8 3 1 . 1 . . 2 Database Lockouts . | . . . . . . . . . . . . . . . Manual 206 | . 9 27 18 43 23 . 33 27 9 . 3 1 7 6 Terminals 337 | . 41 37 28 45 30 . 48 50 12 9 2 . 23 12 Fabricators 20 | . . . . 6 3 . 7 4 . . . . . . Repair Stations 70 | . 4 8 12 16 12 . 15 2 1 . . . . . Recycling Units 10 | . 2 3 3 . . . 2 . . . . . . . Scanalyzers 19 | . . 3 2 3 1 . . . 10 . . . . . Garrison Access 6 | . . . 1 2 . . 2 1 . . . . . . Terminal Hacks 153 | . 37 14 9 18 11 . 16 21 4 6 . . 13 4 Record 16 | . 10 1 . . . . . 3 . . . . 2 . Part Schematic 3 | . . . . . . . 1 . . . . . 2 . Robot Schematic 2 | . . . . 1 . . . 1 . . . . . . Robot Analysis 21 | . 4 3 . 5 4 . 2 . 1 . . . 2 . Prototype ID Bank 37 | . 6 3 4 4 2 . 8 4 2 . . . 3 1 Open Door 6 | . . . . . . . . . . 6 . . . . Level Access Points 1 | . . . . . 1 . . . . . . . . . Branch Access Points 6 | . 1 1 1 1 . . . . 1 . . . 1 . Emergency Access Points 3 | . 2 1 . . . . . . . . . . . . Terminal Index 1 | . . . . . . . . 1 . . . . . . Repair Station Index 2 | . . . 1 1 . . . . . . . . . . Recycling Unit Index 1 | . . . . . 1 . . . . . . . . . Scanalyzer Index 1 | . 1 . . . . . . . . . . . . . Alert Level 5 | . 1 1 . . . . . 1 . . . . 2 . Locate Traps 27 | . 4 2 1 4 3 . 5 7 . . . . . 1 Reprogram Traps 8 | . . 2 2 2 . . . 1 . . . . . 1 Dispatch Records 2 | . 1 . . . . . . 1 . . . . . . Security Status 1 | . 1 . . . . . . . . . . . . . Patrol Status 1 | . 1 . . . . . . . . . . . . . Hauler Manifests 4 | . 4 . . . . . . . . . . . . . Registered Components 1 | . 1 . . . . . . . . . . . . . Registered Prototypes 2 | . . . . . . . . 1 . . . . . 1 Zone Layout 2 | . . . . . . . . 1 . . . . 1 . Fabricator Hacks 5 | . . . . . . . 3 2 . . . . . . Network Status 1 | . . . . . . . . 1 . . . . . . Load Schematic 3 | . . . . . . . 2 1 . . . . . . Build 1 | . . . . . . . 1 . . . . . . . Repair Station Hacks 45 | . 4 6 11 12 6 . 6 . . . . . . . Scan Component 24 | . 2 3 6 6 4 . 3 . . . . . . . Repair 21 | . 2 3 5 6 2 . 3 . . . . . . . Recycling Unit Hacks 7 | . . 3 2 . . . 2 . . . . . . . Process 3 | . . 1 1 . . . 1 . . . . . . . Report Inventory 2 | . . 1 1 . . . . . . . . . . . Retrieve Matter 2 | . . 1 . . . . 1 . . . . . . . Scanalyzer 10 | . . 1 . . . . . . 9 . . . . . Retrieve Study 10 | . . 1 . . . . . . 9 . . . . . Garrison Access Hacks . | . . . . . . . . . . . . . . . Unauthorized Hacks 58 | . 2 7 8 14 7 . 10 8 2 . . . . . Terminals 25 | . . 4 5 3 5 . 4 4 . . . . . . Detonate 17 | . . 1 3 2 3 . 4 4 . . . . . . Sabotage 8 | . . 3 2 1 2 . . . . . . . . . Fabricators 8 | . . . . 4 1 . 2 1 . . . . . . Overload 8 | . . . . 4 1 . 2 1 . . . . . . Repair Stations 9 | . . 1 . 3 . . 2 2 1 . . . . . Patch 9 | . . 1 . 3 . . 2 2 1 . . . . . Recycling Units 2 | . 2 . . . . . . . . . . . . . Tunnel 2 | . 2 . . . . . . . . . . . . . Scanalyzers 9 | . . 2 2 3 1 . . . 1 . . . . . Extract 9 | . . 2 2 3 1 . . . 1 . . . . . Garrison Access 5 | . . . 1 1 . . 2 1 . . . . . . Broadcast 5 | . . . 1 1 . . 2 1 . . . . . . Data Cores Recovered 7 | . . . . 1 1 . 1 2 . . . . 1 1 Used 2 | . . . . 1 . . . . . . . . 1 . Hacking Detections 107 | . 9 10 10 16 10 . 23 14 4 2 2 . 6 1 Full Trace Events 78 | . 9 6 8 13 7 . 15 13 4 . 1 . 1 1 Feedback Events 6 | . . . 2 3 . . . 1 . . . . . . Corruption 6 | . . . 2 3 . . . 1 . . . . . . Feedback Blocked . | . . . . . . . . . . . . . . . Robot Schematics Acquired 2 | . . . . 1 . . . 1 . . . . . . Robots Built . | . . . . . . . . . . . . . . . Authchips . | . . . . . . . . . . . . . . . Time . | . . . . . . . . . . . . . . . Total Robot Build Rating . | . . . . . . . . . . . . . . . Part Schematics Acquired 37 | . . 9 6 13 2 . 1 . 4 . . . 2 . Parts Built 2 | . . . . . . . 2 . . . . . . . Authchips . | . . . . . . . . . . . . . . . Time 73 | . . . . . . . 73 . . . . . . . Total Part Build Rating 6 | . . . . . . . 6 . . . . . . . Part Studies Acquired 8 | . . . . . . . . . 8 . . . . . Parts Repaired 21 | . 2 3 5 6 2 . 3 . . . . . . . Time 693 | . 52 90 203 241 41 . 66 . . . . . . . Parts Recycled . | . . . . . . . . . . . . . . . Recycled Matter 863 | . . 231 326 . . . 306 . . . . . . . Retrieved Matter 723 | . . 247 . . . . 476 . . . . . . . Retrieved Components . | . . . . . . . . . . . . . . . Parts Scanalyzed . | . . . . . . . . . . . . . . . Part Schematics Acquired . | . . . . . . . . . . . . . . . Parts Damaged . | . . . . . . . . . . . . . . . Bothacking | -11 -10 -9 -8 -7 -6 -6 -6 -5 -4 -4 -4 -4 -4 -3 ------------ Run | Yrd Mat Mat Mat Fac Fac Was Fac Fac Fac Ext Cet Arc Hub Res Used RIF Installer . | . . . . . . . . . . . . . . . Robots Hacked . | . . . . . . . . . . . . . . . Non-combat . | . . . . . . . . . . . . . . . Combat . | . . . . . . . . . . . . . . . Robot Hacks Applied . | . . . . . . . . . . . . . . . Relay Couplers Released 5 | . . . . . . . . . 1 . . . 4 . Machine Destruction 1 | . . . . . . . . . 1 . . . . . Programmers 4 | . . . . . . . . . . . . . 4 . Fabnet Peak Effective % . | . . . . . . . . . . . . . . . Robots Rewired 1 | . . . . . . . . . . . . . . 1 Allies Hacked 1 | . . . . . . . . . . . . . . 1 Hacks Repelled . | . . . . . . . . . . . . . . . Allies | -11 -10 -9 -8 -7 -6 -6 -6 -5 -4 -4 -4 -4 -4 -3 -------- Run | Yrd Mat Mat Mat Fac Fac Was Fac Fac Fac Ext Cet Arc Hub Res Total Allies 8 | . . . . . . . . . . 7 . . . 1 Largest Group 6 | . . . . . . . . . . 6 6 5 1 1 Highest-Rated Group 372 | . . . . . . . . . . 372 372 320 46 89 Highest-Rated Ally 159 | . . . . . . . . . . 159 159 153 46 89 Total Orders . | . . . . . . . . . . . . . . . Ally Attacks 98 | . . . . . . . . . . 16 34 30 17 1 Total Damage 2031 | . . . . . . . . . . 599 601 570 184 77 Kills 16 | . . . . . . . . . . 8 4 2 1 1 Allies Corrupted . | . . . . . . . . . . . . . . . Allies Melted . | . . . . . . . . . . . . . . . Intel | -11 -10 -9 -8 -7 -6 -6 -6 -5 -4 -4 -4 -4 -4 -3 ------- Run | Yrd Mat Mat Mat Fac Fac Was Fac Fac Fac Ext Cet Arc Hub Res Active Infowar (turns) 12 | . . . . . . . 10 2 . . . . . . Sensors 10 | . . . . . . . 10 . . . . . . . Cloaking 2 | . . . . . . . . 2 . . . . . . Robot Analysis Total 21 | . 4 3 . 5 4 . 2 . 1 . . . 2 . Derelict Logs Recovered . | . . . . . . . . . . . . . . . Drone Launches . | . . . . . . . . . . . . . . . Drone Recoveries . | . . . . . . . . . . . . . . . Exploration | -11 -10 -9 -8 -7 -6 -6 -6 -5 -4 -4 -4 -4 -4 -3 ------------- Run | Yrd Mat Mat Mat Fac Fac Was Fac Fac Fac Ext Cet Arc Hub Res Turns Passed 49758 | 68 1983 3911 4955 9577 4913 476 10363 7267 1476 1285 421 237 2256 570 Spaces Moved 19952 | 51 2077 1607 1502 3453 1615 184 3720 2682 724 710 231 127 1051 218 Core 107 | 14 1 . . . . . . . . . . . . 92 Treads 17460 | . . 1338 1502 3453 1615 184 3720 2682 724 710 231 127 1051 123 Legs 741 | 37 432 269 . . . . . . . . . . . 3 Wheels . | . . . . . . . . . . . . . . . Hover 1644 | . 1644 . . . . . . . . . . . . . Flight . | . . . . . . . . . . . . . . . Fastest Speed 50 | 50 52 120 241 241 230 230 160 240 158 158 158 158 158 50 Average Speed 209 | 107 66 208 244 242 253 235 236 245 160 158 158 158 171 138 Slowest Speed 650 | 120 190 250 250 243 650 236 320 246 206 158 158 158 173 320 Overloaded Moves . | . . . . . . . . . . . . . . . Propulsion Burnouts . | . . . . . . . . . . . . . . . Robots Hopped . | . . . . . . . . . . . . . . . Potential Cave-ins . | . . . . . . . . . . . . . . . Cave-ins Triggered . | . . . . . . . . . . . . . . . Exploration Rate (%) 67 | 5 98 97 87 86 44 85 90 66 21 82 63 95 88 9 Regions Visited 14 Branch Regions 4 Pre-discovered Areas 2 | . 2 . . . . . . . . . . . . . Known Exits Taken 12 | 1 1 1 1 1 . . 1 1 1 1 1 1 1 . Unknown Exits Taken . | . . . . . . . . . . . . . . . Scrap Searched . | . . . . . . . . . . . . . . . Spaces Dug 13 | . . . . 1 . . 7 5 . . . . . . Terrain Destroyed 2522 | . 16 346 88 180 297 198 158 342 92 141 2 3 562 97 Melee . | . . . . . . . . . . . . . . . Projectile 471 | . . . . 67 76 . 98 116 34 3 2 3 65 7 AOE 2050 | . 16 346 88 113 221 198 60 226 58 138 . . 497 89 Terrain Rammed . | . . . . . . . . . . . . . . . Walls Destroyed . | . . . . . . . . . . . . . . . Machines Disabled . | . . . . . . . . . . . . . . . Actions | -11 -10 -9 -8 -7 -6 -6 -6 -5 -4 -4 -4 -4 -4 -3 --------- Run | Yrd Mat Mat Mat Fac Fac Was Fac Fac Fac Ext Cet Arc Hub Res Total 24765 | 60 2415 1958 2567 4126 2130 201 4632 3019 859 791 261 148 1257 341 Wait 2613 | . 114 160 819 337 348 1 535 130 44 21 20 16 59 9 Move 19939 | 50 2076 1606 1501 3452 1615 183 3719 2681 723 709 230 126 1050 218 Hop . | . . . . . . . . . . . . . . . Pick Up 119 | 3 10 15 21 16 9 . 22 8 . 8 . . 5 2 Fast Attach 115 | 7 12 7 14 10 10 1 20 3 5 6 . . 4 16 Attach 62 | . . 4 4 7 8 . 7 6 4 . . . 10 12 Detach 21 | . 2 4 1 2 1 . 2 2 3 . . . 2 2 Swap 181 | . 11 17 23 20 7 6 27 31 10 9 . . 17 3 Drop 179 | . 21 13 31 24 6 2 37 22 1 9 . . 11 2 Fire 1520 | . 167 131 153 256 126 8 259 136 69 29 11 6 97 72 Melee 1 | . 1 . . . . . . . . . . . . . Ram 2 | . 1 . . . . . . . . . . . . 1 Kick . | . . . . . . . . . . . . . . . Crush 4 | . . 1 . . . . . . . . . . 2 1 Escape Stasis 6 | . . . . 2 . . 4 . . . . . . . Rewire 3 | . . . . . . . . . . . . . . 3 Trap . | . . . . . . . . . . . . . . . Miscellaneous . | . . . . . . . . . . . . . . . Route ------- -11/Scrapyard -10/Materials (discovered 5 exits: *Mat x3 / *Min / *Sub) -9/Materials (discovered 4 exits: *Mat x3 / *Min) -8/Materials (discovered 5 exits: *Fac x3 / *Sto x2) -7/Factory (discovered 6 exits: *Fac x4 / *Low x2) -6/Factory (discovered 6 exits: *Fac x4 / *Low x2) -6/Waste -6/Factory (discovered 6 exits: *Fac x4 / *Low x2) -5/Factory (discovered 5 exits: *Fac x3 / *Upp x2) -4/Factory (discovered 4 exits: Upp x2 / *Ext x2) -4/Extension (discovered 2 exits: *Res / *Cet) -4/Cetus -4/Archives (discovered 3 exits: *Res / *Hub x2) -4/Hub_04(d) (discovered 4 exits: *Res x4) -3/Research History --------- Turn | Location | Event 12 | -11/Scrapyard | Identified exit to Materials 12 | -11/Scrapyard | Discovered exit to Materials (range 15) 69 | -11/Scrapyard | Entered Materials 69 | -10/Materials | Evolved 1 slot: Propulsion x1 185 | -10/Materials | Identified exit to Materials 185 | -10/Materials | Discovered exit to Materials (range 11) 307 | -10/Materials | Build established: Hacker-Mutant 354 | -10/Materials | Discovered exit to Materials (range 16) 378 | -10/Materials | Identified exit to Mines 378 | -10/Materials | Discovered exit to Mines (range 16) 477 | -10/Materials | Discovered exit to Materials (range 16) 1732 | -10/Materials | Identified exit to Subcaves 1732 | -10/Materials | Discovered exit to Subcaves (range 13) 1842 | -10/Materials | Repaired Ion Engine 1869 | -10/Materials | Repaired Lgt. Armor Plating 2052 | -10/Materials | Entered another Materials area 2052 | -9/Materials | Evolved 2 slots: Propulsion x1, Weapon x1 2225 | -9/Materials | Identified exit to Mines 2225 | -9/Materials | Discovered exit to Mines (range 16) 2302 | -9/Materials | Identified exit to Materials 2302 | -9/Materials | Discovered exit to Materials (range 14) 2365 | -9/Materials | Build established: Hacker-Tank 2999 | -9/Materials | Build established: Hacker-Gunner 3551 | -9/Materials | Discovered exit to Materials (range 3) 3597 | -9/Materials | Build established: Hacker-Tank 3726 | -9/Materials | Discovered exit to Materials (range 15) 4776 | -9/Materials | Repaired Rocket Launcher 4803 | -9/Materials | Repaired Med. Matter Pod 5128 | -9/Materials | Repaired Rocket Launcher 5399 | -9/Materials | Build established: Hacker-Mutant 5422 | -9/Materials | Sterilization system engaged 5422 | -9/Materials | Non-combat units ordered to evacuate 5522 | -9/Materials | Combat units ordered to evacuate 5722 | -9/Materials | Ambient heat levels rising (+10) 5731 | -9/Materials | Build established: Hacker-Tank 5872 | -9/Materials | Ambient heat levels rising (+10) 5963 | -9/Materials | Entered another Materials area 5963 | -8/Materials | Evolved 2 slots: Utility x2 6399 | -8/Materials | Identified exit to Storage 7312 | -8/Materials | Identified exit to Factory 7312 | -8/Materials | Discovered exit to Factory (range 10) 7714 | -8/Materials | Discovered exit to Factory (range 9) 7905 | -8/Materials | Build established: Hacker-Mutant 8148 | -8/Materials | Repaired Arm. Treads 8187 | -8/Materials | Repaired Arm. Treads 8227 | -8/Materials | Repaired Arm. Treads 8396 | -8/Materials | Build established: Hacker-Tank 8576 | -8/Materials | Repaired Cld. Ion Engine 8616 | -8/Materials | Repaired Arm. Treads 9550 | -8/Materials | Discovered exit to Factory (range 9) 9864 | -8/Materials | Build established: Hacker-Gunner 10287 | -8/Materials | Sterilization system engaged 10287 | -8/Materials | Non-combat units ordered to evacuate 10387 | -8/Materials | Combat units ordered to evacuate 10460 | -8/Materials | Build established: Hacker-Bomber 10587 | -8/Materials | Ambient heat levels rising (+10) 10737 | -8/Materials | Ambient heat levels rising (+10) 10887 | -8/Materials | Ambient heat levels rising (+10) 10918 | -8/Materials | Entered Factory 10918 | -7/Factory | Evolved 2 slots: Utility x1, Weapon x1 11321 | -7/Factory | Identified exit to Lower Caves 12311 | -7/Factory | Repaired Arm. Treads 12552 | -7/Factory | Repaired Imp. Light Armor Plating 13637 | -7/Factory | Identified exit to Factory 13637 | -7/Factory | Discovered exit to Factory (range 10) 13775 | -7/Factory | Found Powered Armor 14927 | -7/Factory | Discovered exit to Factory (range 16) 15700 | -7/Factory | Build established: Hacker-Tank 16016 | -7/Factory | Build established: Hacker-Gunner 16250 | -7/Factory | Lost 3 allies 16585 | -7/Factory | Discovered exit to Factory (range 12) 16662 | -7/Factory | Repaired Arm. Treads 18411 | -7/Factory | Discovered exit to Factory (range 13) 18599 | -7/Factory | System corruption reached 10% 18947 | -7/Factory | Repaired Arm. Treads 19019 | -7/Factory | Repaired Cld. Deuterium Engine 19058 | -7/Factory | Repaired Thermal Generator 19509 | -7/Factory | Garrison activated, responded to threat 19567 | -7/Factory | Destroyed 7 combat bots 20071 | -7/Factory | Garrison activated, responded to threat 20108 | -7/Factory | Sterilization system engaged 20108 | -7/Factory | Non-combat units ordered to evacuate 20208 | -7/Factory | Combat units ordered to evacuate 20408 | -7/Factory | Ambient heat levels rising (+10) 20495 | -7/Factory | Entered another Factory area 20495 | -6/Factory | Evolved 2 slots: Utility x2 21357 | -6/Factory | Identified exit to Factory 21357 | -6/Factory | Discovered exit to Factory (range 2) 21399 | -6/Factory | Identified exit to Lower Caves 21399 | -6/Factory | Discovered exit to Lower Caves (range 13) 22587 | -6/Factory | Cargo convoy interrupted 23370 | -6/Factory | Discovered exit to Factory (range 14) 23485 | -6/Factory | Lost 3 parts (3n) 24204 | -6/Factory | Repaired Gauss Cannon 24470 | -6/Factory | Repaired Adv. Treads 24806 | -6/Factory | Spotted B-75 Beast 24864 | -6/Factory | Build established: Hacker-Tank 25102 | -6/Factory | Discovered exit to Lower Caves (range 4) 25145 | -6/Factory | Lost 3 parts (2u1w) 25408 | -6/Factory | Sucked down chute 25408 | -6/Factory | Entered Waste 25457 | -6/Waste | Spotted C-40 Crusher 25460 | -6/Waste | Spotted C-40 Crusher 25466 | -6/Waste | Spotted C-40 Crusher 25468 | -6/Waste | Destroyed C-40 Crusher 25473 | -6/Waste | Destroyed C-40 Crusher 25473 | -6/Waste | Destroyed C-40 Crusher 25478 | -6/Waste | Spotted C-40 Crusher 25483 | -6/Waste | Destroyed C-40 Crusher 25506 | -6/Waste | Spotted C-40 Crusher 25515 | -6/Waste | Destroyed C-40 Crusher 25529 | -6/Waste | Spotted C-40 Crusher 25561 | -6/Waste | Destroyed C-40 Crusher 25697 | -6/Waste | Identified exit to Factory 25697 | -6/Waste | Discovered exit to Factory (range 13) 25884 | -6/Waste | Entered Factory 25979 | -6/Factory | Watched by a mysterious "MATRIX" hacker. 26006 | -6/Factory | Garrison activated, responded to threat 26040 | -6/Factory | Discovered exit to Lower Caves (range 13) 26366 | -6/Factory | Fabricated Assault Cannon (x2) 26694 | -6/Factory | Discovered exit to Factory (range 12) 27839 | -6/Factory | Build established: Hacker-Gunner 28045 | -6/Factory | Discovered exit to Factory (range 14) 28169 | -6/Factory | Repaired Imp. Shield Generator 28191 | -6/Factory | Repaired Imp. Cooling System 29158 | -6/Factory | Discovered exit to Lower Caves (range 12) 29491 | -6/Factory | Discovered exit to Factory (range 10) 30840 | -6/Factory | Spotted B-75 Beast 30849 | -6/Factory | Destroyed B-75 Beast 32170 | -6/Factory | Repaired Imp. Cooling System 33691 | -6/Factory | Core integrity fell below 50% 34557 | -6/Factory | Discovered exit to Factory (range 16) 35853 | -6/Factory | Sterilization system engaged 35853 | -6/Factory | Non-combat units ordered to evacuate 35953 | -6/Factory | Combat units ordered to evacuate 36153 | -6/Factory | Ambient heat levels rising (+10) 36247 | -6/Factory | Entered another Factory area 36247 | -5/Factory | Evolved 2 slots: Power x1, Utility x1 36608 | -5/Factory | Build established: Hacker-Tank 37642 | -5/Factory | System corruption reached 10% 37670 | -5/Factory | Destroyed 7 combat bots 38526 | -5/Factory | Identified exit to Factory 38526 | -5/Factory | Discovered exit to Factory (range 12) 40669 | -5/Factory | Discovered exit to Factory (range 8) 40697 | -5/Factory | Garrison activated, responded to threat 40891 | -5/Factory | Identified exit to Upper Caves 40891 | -5/Factory | Discovered exit to Upper Caves (range 10) 41487 | -5/Factory | Discovered exit to Upper Caves (range 15) 41760 | -5/Factory | Spotted B-75 Beast 41785 | -5/Factory | Destroyed B-75 Beast 43077 | -5/Factory | Discovered exit to Factory (range 14) 43514 | -5/Factory | Entered another Factory area 43514 | -4/Factory | Evolved 2 slots: Propulsion x2 43835 | -4/Factory | Build established: Scientist-Tank 43962 | -4/Factory | Garrison activated, responded to threat 44484 | -4/Factory | Destroyed 7 combat bots 44929 | -4/Factory | Identified exit to Upper Caves 44929 | -4/Factory | Identified exit to Extension 44950 | -4/Factory | Build established: Scientist-Gunner 44990 | -4/Factory | Entered Extension 45112 | -4/Extension | Spotted B-86 Titan 45161 | -4/Extension | Spotted B-86 Titan 45188 | -4/Extension | Destroyed B-86 Titan 45356 | -4/Extension | Rescued a captive Derelict 45357 | -4/Extension | Rescued a captive Derelict 45510 | -4/Extension | Rescued a captive Derelict 45511 | -4/Extension | Rescued a captive Derelict 45636 | -4/Extension | Rescued A7 45653 | -4/Extension | Rescued a captive Derelict 45788 | -4/Extension | Rescued a captive Derelict 45866 | -4/Extension | Build established: Hacker-Tank 46193 | -4/Extension | Rescued a captive Derelict 46243 | -4/Extension | Identified exit to Research 46243 | -4/Extension | Discovered exit to Research (range 10) 46245 | -4/Extension | Identified exit to Cetus 46245 | -4/Extension | Discovered exit to Cetus (range 6) 46275 | -4/Extension | Entered Cetus 46275 | -4/Cetus | Accompanied by 6 allies (A7) 46280 | -4/Cetus | Acquired a Cetus Manufacturing Module code from A7 46293 | -4/Cetus | Spotted Cetus Guard 46300 | -4/Cetus | Allies destroyed Cetus Guard 46301 | -4/Cetus | Spotted Cetus Guard 46301 | -4/Cetus | Spotted Cetus Guard 46306 | -4/Cetus | Destroyed Cetus Guard 46310 | -4/Cetus | Spotted Cetus Guard 46313 | -4/Cetus | Allies destroyed Cetus Guard 46321 | -4/Cetus | Allies destroyed Cetus Guard 46360 | -4/Cetus | Cetus Manufacturing Module disabled 46441 | -4/Cetus | Failed to start Cetus Manufacturing Module 46474 | -4/Cetus | Identified exit to Archives 46474 | -4/Cetus | Discovered exit to Archives (range 16) 46696 | -4/Cetus | Entered Archives 46696 | -4/Archives | Accompanied by 5 allies (A7) 46755 | -4/Archives | Unable to access archive contents 46759 | -4/Archives | Identified exit to Hub_04(d) 46759 | -4/Archives | Discovered exit to Hub_04(d) (range 16) 46762 | -4/Archives | Lost 3 allies 46776 | -4/Archives | Discovered exit to Hub_04(d) (range 16) 46836 | -4/Archives | Discovered exit to Research (range 15) 46933 | -4/Archives | Entered Hub_04(d) 46933 | -4/Hub_04(d) | Accompanied by 1 ally 47060 | -4/Hub_04(d) | Discovered exit to Research (range 3) 47182 | -4/Hub_04(d) | Discovered exit to Research (range 16) 47397 | -4/Hub_04(d) | Discovered exit to Research (range 15) 47755 | -4/Hub_04(d) | Spotted B-86 Titan 47774 | -4/Hub_04(d) | Destroyed B-86 Titan 47924 | -4/Hub_04(d) | Build established: Hacker-Gunner 48118 | -4/Hub_04(d) | Garrison activated, responded to threat 48319 | -4/Hub_04(d) | Destroyed 7 combat bots 48563 | -4/Hub_04(d) | Network Hub disabled 48611 | -4/Hub_04(d) | Spotted Lightning 48614 | -4/Hub_04(d) | Network Hub disabled 48627 | -4/Hub_04(d) | Spotted Lightning 48629 | -4/Hub_04(d) | Spotted Lightning 48634 | -4/Hub_04(d) | Destroyed Lightning 48697 | -4/Hub_04(d) | Destroyed Lightning 48716 | -4/Hub_04(d) | System corruption reached 10% 48716 | -4/Hub_04(d) | Destroyed Lightning 48768 | -4/Hub_04(d) | Spotted Lightning 48769 | -4/Hub_04(d) | Destroyed Lightning 48775 | -4/Hub_04(d) | Spotted Lightning 48776 | -4/Hub_04(d) | Spotted Lightning 48821 | -4/Hub_04(d) | Destroyed Lightning 48830 | -4/Hub_04(d) | Destroyed Lightning 48877 | -4/Hub_04(d) | Found Exp. Targeting Computer 48889 | -4/Hub_04(d) | Discovered exit to Research (range 12) 48917 | -4/Hub_04(d) | Build established: Hacker-Tank 49129 | -4/Hub_04(d) | Network Hub disabled 49129 | -4/Hub_04(d) | Network Hub disabled 49189 | -4/Hub_04(d) | Entered Research 49189 | -3/Research | Evolved 2 slots: Utility x2 49251 | -3/Research | Garrison activated, responded to threat 49349 | -3/Research | Lost 4 parts (1n2u1w) 49382 | -3/Research | Destroyed 17 combat bots 49439 | -3/Research | First assault squad dispatched 49595 | -3/Research | Destroyed 9 combat bots 49635 | -3/Research | Cargo convoy interrupted 49637 | -3/Research | Lost 21 parts (3p3n8u7w) 49637 | -3/Research | Spotted Striker 49640 | -3/Research | Released all parts (4) 49666 | -3/Research | Core integrity fell below 50% 49698 | -3/Research | Rewired Striker 49708 | -3/Research | Core integrity fell below 20% 49714 | -3/Research | System corruption reached 10% 49759 | -3/Research | Destroyed by P-80 Master with Gamma Rifle Last Messages --------------- 49730_ Identified Imp. Concussive RPG. 49731_ R-10 Processor collects Unknown Flight Unit. 49731_ Imp. Concussive RPG expended. 49731_ P-80 Master knocked back. 49731_ K-01 Serf destroyed. 49731_ P-80 Master knocked back. 49731_ R-10 Processor knocked back. 49732_ P-80 Master resets P-80 Master, system corruption cleaned. 49734_ R-10 Processor distress signal alerts nearby ally. 49735_ U-05 Engineer lays Concrete. 49736_ Acquired 26 matter. 49737_ A :B ,ITD,R6SYZIK% FXZVD4#&CQ|GGGDG# 49737_ U-05 Engineer builds a Door. 49737_ Acquired 3 matter. 49738_ P-80 Master resets R-10 Processor, system corruption cleaned. 49738_ K-01 Serf collects debris. 49741_ U-05 Engineer builds a Wall. 49742_ K-01 Serf collects debris. 49749_ P-80 Master resets P-80 Master, system corruption cleaned. 49758_ Hvy. Deuterium Engine destroyed. Map ----- +----------------------------------------------------+ | ??????????????????# ##########??????????????????? | | ?????????????????? #??????????????????? | | ??????????????????? ! #???????????????????? | | ????????????????# ?"" = #???????????????????? | | ????????????????# """ ####+######+#####?### | | ????????????????? """ "" # | | ????????????????? "" + | | ????????????????? S" # | | ????????????????# """ """ # | | ????????????????# """ """ ## #######+###??#### | | ????????????????# """ """ ## #???????????????? | | ????????????????+ ## #???????????????? | | ????????????????# ## #???????????????? | | ????????????????######+##+##### #???????????????? | | ?????????????????????# #???# #???????????????? | | ?????????????????????# #???# #???????????????# | | ???????????????####### #???# #???????????????? | | ??????????????## ## p #???# #???????????????? | | ??????????????#/ ] %# p#???# #???????????????? | | ??????????????# % !# #???# ###??????????????? | | ?????????????##!=] / #???# T#??????????????? | | ?????????????# % ####p#???# ""#??????????????? | | ?????????????##] =##?# #???# ###??????????????? | | ??????????????#]= [ #?# #???# #????????????????? | | ??????????????##### ###?# #???#/#################? | | ??????????????????###???#@#???# #? | | ??????????????????????? #??# #? | | ??????????????????????# #??# """ """ """ #? | | ??????????????????????#R #??# """ """ """ #? | | ??????????????????????+ #??# """ """ """ #? | | ??????????????????????# #??# #? | | ??????????????????????# #??# #? | | ??????????????????????# #??#######/#/########## | | ??????????????????????# | | ??????????????????????+ ! | | ??????????????????????# | | ??????????????????????# | | ??????????????????????#R ######+################ | | ??????????????????????#R k ??????????????????????? | | ??????????????????????# ??????????????????????? | | ??????????????????????? ??????????????????????? | | ?????????????????????????????????????????????????? | | ?????????????????????????????????????????????????? | | ?????????????????????????????????????????????????? | | ?????????????????????????????????????????????????? | | ?????????????????????????????????????????????????? | | ?????????????????????????????????????????????????? | | ?????????????????????????????????????????????????? | | ?????????????????????????????????????????????????? | | ?????????????????????????????????????????????????? | +----------------------------------------------------+ Best States ------------- Heat Dissipation 115 Coolant Potential 65 Energy Generation 33 Energy Capacity 520 Matter Stores 550 Matter Capacity 550 Sight Range 16 Robot Scan Range 16 Terrain Scan Density 85 Cloak Strength 2 Armor Coverage 750 Resistance: KI 55 Resistance: TH 55 Resistance: EX 85 Resistance: EM 35 Resistance: I 35 Resistance: S 35 Resistance: P 35 Weapon Shielding 33 Evasion (%) 55 Targeting Accuracy 32 Target Analysis 5 Armor Integrity Analysis 30 Recoil Reduction 8 Matter Filtering 50 Kinecelleration 30 Offensive Hacking 20 Item Schematics ----------------- Cooling System | -9/Materials | Extracted EM Shotgun | -9/Materials | Extracted Imp. Light Cannon | -9/Materials | Extracted Lrg. Storage Unit | -9/Materials | Extracted Hrd. Light Armor Plating | -9/Materials | Extracted Autogun | -9/Materials | Extracted Hcp. Storage Unit | -9/Materials | Extracted Hvy. Ion Engine | -9/Materials | Extracted Hammer | -9/Materials | Extracted Lgt. Treads | -8/Materials | Extracted Lgt. Cannon | -8/Materials | Extracted Minigun | -8/Materials | Extracted Aerolev Unit | -8/Materials | Extracted Terrain Scan Processor | -8/Materials | Extracted Lgt. Nuclear Core | -8/Materials | Extracted Kinecellerator | -7/Factory | Extracted Lrg. Battery | -7/Factory | Extracted Assault Cannon | -7/Factory | Extracted Med. Storage Unit | -7/Factory | Extracted Com. Battery | -7/Factory | Extracted Imp. Shield Generator | -7/Factory | Extracted Microactuators | -7/Factory | Extracted Enh. Autogun | -7/Factory | Extracted Med. Treads | -7/Factory | Extracted Pulse Rifle | -7/Factory | Extracted Adv. ECM Suite | -7/Factory | Extracted Imp. Field Recycling Unit | -7/Factory | Extracted Hpw. Tractor Beam | -7/Factory | Extracted Launcher Loader | -6/Factory | Extracted Cold Fusion Reactor | -6/Factory | Extracted Adv. Target Analyzer | -6/Factory | Hacked Arm. Wheel | -4/Factory | Extracted Imp. Kinecellerator | -4/Factory | Extracted Recalibrator | -4/Factory | Extracted Launcher Guidance Computer | -4/Factory | Extracted Enh. Hardcell Cannon | -4/Hub_04(d) | Hacked Quantum Reactor | -4/Hub_04(d) | Hacked Robot Schematics ------------------ B-48 Gladiator | -7/Factory | Hacked T-07 Excavator | -5/Factory | Hacked Fabricated ------------ Assault Cannon | x2 | -6/Factory Repaired ---------- Ion Engine | 98% | -10/Materials Lgt. Armor Plating | 62% | -10/Materials Rocket Launcher | 32% | -9/Materials Med. Matter Pod | 96% | -9/Materials Rocket Launcher | 30% | -9/Materials Arm. Treads | 47% | -8/Materials Arm. Treads | 55% | -8/Materials Arm. Treads | 60% | -8/Materials Cld. Ion Engine | 72% | -8/Materials Arm. Treads | 66% | -8/Materials Arm. Treads | 18% | -7/Factory Imp. Light Armor Plating | 26% | -7/Factory Arm. Treads | 12% | -7/Factory Arm. Treads | 34% | -7/Factory Cld. Deuterium Engine | 53% | -7/Factory Thermal Generator | 52% | -7/Factory Gauss Cannon | 6% | -6/Factory Adv. Treads | 7% | -6/Factory Imp. Cooling System | 25% | -6/Factory Imp. Cooling System | 18% | -6/Factory Studied --------- Mass Driver | -4/Factory | Hacked Hvy. Treads | -4/Factory | Hacked Arm. Medium Treads | -4/Factory | Hacked Hyp. Gauss Cannon | -4/Factory | Hacked Enh. Gauss Cannon | -4/Factory | Hacked Hvy. Missile Launcher | -4/Factory | Hacked Lrn. Missile Launcher | -4/Factory | Hacked Imp. Medium Treads | -4/Factory | Hacked Alien Tech Used ----------------- None Achievements -------------- 404 Into The Furnace Professional Mechanic Ride The Lightning Scorched Earth Challenges ------------ None Game ------ Seed HardenedSeismicDrillbomb Manual? 0 Play Time 04:34:53 Cumulative 217.6 hours Start 2026.06.17 @ 13:10:52 End 2026.06.17 @ 21:06:56 Sessions 3 Manual Loads 0 Difficulty Explorer Special Mode None Game No. 356 Rogue 216 Adventurer 15 Explorer 125 Win Type - Total 17 Types 17/0/0/0/0/0/0/0/0/0 Lore% 60 Gallery% 63 Achievement% 52 Wizard Run 0 Options --------- Layout 0 ASCII 0 Keyboard 1 Movement Numpad Keybinds 0 Fullscreen 2 Font 18/SmallcapsGlow Map View 76x50 Zoom Use 0% Tactical HUD 1 Map Filters NONE Filters NONE Steam 1 RUN: 3f496925-9452-4ce0-a443-b9fc4bced8f2